fUST/lending_fUST_20250613
["ID","MTS","AMOUNT","RATE_DAILY","PERIOD"]
[365538102,1749773445933,-151.0,0.00024415,7]
[365538104,1749773445948,-1763.300814,0.00024415,7]
[365538106,1749773445961,-1763.300814,0.00024415,7]
[365538108,1749773445971,-151.0,0.00024415,7]
[365538110,1749773445981,-151.0,0.00024415,7]
[365538112,1749773445992,-151.0,0.00024415,7]
[365538114,1749773446001,-151.0,0.00024415,7]
[365538116,1749773446011,-151.0,0.00024415,7]
[365538118,1749773446022,-151.0,0.00024415,7]
[365538120,1749773446032,-151.0,0.00024415,7]
[365538122,1749773446041,-548.650842,0.00024415,7]
[365538124,1749773446051,-548.650842,0.00024415,7]
[365538126,1749773446061,-151.0,0.00024415,7]
[365538128,1749773446070,-151.0,0.00024415,7]
[365538130,1749773446079,-151.0,0.00024415,7]
[365538132,1749773446088,-167.201762,0.00024415,7]
[365538134,1749773446104,-167.201762,0.00024415,7]
[365538136,1749773446113,-151.0,0.00024415,7]
[365538138,1749773446122,-151.0,0.00024415,7]
[365538140,1749773446131,-305.559478,0.00024415,7]
[365538142,1749773446140,-305.559478,0.00024415,7]
[365538144,1749773446150,-151.0,0.00024415,7]
[365538146,1749773446160,-9587.40413617,0.00024415,7]
[365538149,1749773446180,-31540.0,0.00024415,7]
[365538161,1749773446287,-436.39153455,0.000238,2]
[365538163,1749773446296,-2200.0,0.00024415,2]
[365538165,1749773446306,-725.62140645,0.00024415,7]
[365538167,1749773446318,-13665.81734101,0.00024415,7]
[365538169,1749773446328,-1217.52369999,0.00024417,11]
[365538171,1749773446338,-267.72559005,0.00024418,4]
[365538174,1749773446354,-192.27440995,0.00024418,4]
[365538175,1749773446363,-460.0,0.00024418,4]
[365538177,1749773446374,-20469.41514114,0.00024429,7]
[365539915,1749773476899,381.295816,0.00013699,2]
[365539917,1749773671168,200.0,0.00023473,120]
[365539918,1749773676706,180.0,0.00017288,3]
[365539920,1749773731245,200.0,0.000234,120]
[365539921,1749773756862,2973.13034165,0.00024921,120]
[365539923,1749773791330,200.0,0.00024376,120]
[365539925,1749773840559,3070.0,0.00024658,120]
[365539927,1749773851314,200.0,0.00024187,120]
[365539950,1749773971738,200.0,0.00023725,120]
[365539951,1749773994090,182.0,0.0001726,3]
[365539952,1749774031639,200.0,0.00023741,120]
[365539954,1749774051146,2000.0,0.000208,120]
[365539957,1749774151385,200.0,0.0002382,120]
[365539961,1749774211058,200.0,0.00024433,120]
[365539962,1749774240319,1561.69342878,0.00024922,60]
[365539968,1749774271450,200.0,0.00024423,120]
[365539971,1749774308985,166.0,0.0001726,3]
[365539983,1749774332746,5588.00087776,0.00024922,60]
[365539984,1749774333141,150.5,0.00023448,120]
[365539985,1749774333612,150.5,0.00023438,120]
[365539986,1749774334078,150.5,0.00023428,120]
[365540015,1749774391345,200.0,0.00023727,120]
[365540046,1749774451110,200.0,0.00023598,120]
[365540053,1749774465615,168.83905252,0.00024922,120]
[365540056,1749774471235,2576.12730485,0.00024922,120]
[365540057,1749774471966,285.91174813,0.000246,120]
[365540059,1749774476386,297.2888834,0.00024658,120]
[365540080,1749774484506,200.0,0.00024922,120]
[365540084,1749774485242,2417.07926322,0.00024922,60]
[365540093,1749774496203,268.69819254,0.00024922,120]
[365540094,1749774498413,543.23823661,0.00024922,120]
[365540098,1749774504623,959.35246546,0.00024922,120]
[365540099,1749774504965,913.34675562,0.00024922,120]
[365540101,1749774508045,553.83190821,0.00024922,120]
[365540105,1749774511087,200.0,0.00023968,120]
[365540108,1749774512975,842.44251968,0.00024922,120]
[365540110,1749774513941,686.39511379,0.00024922,120]
[365540117,1749774515306,2770.83178032,0.00024922,60]
[365540118,1749774515375,240.82074905,0.00024922,120]
[365540123,1749774516572,1057.95465024,0.0002,120]
[365540124,1749774516606,241.46918459,0.00024922,120]
[365540126,1749774517211,2286.00146687,0.00024922,120]
[365540127,1749774517752,1000.62364918,0.00024922,120]
[365540129,1749774518044,2000.0,0.00024922,120]
[365540131,1749774518286,3049.06472543,0.00024922,120]
[365540132,1749774518745,1097.55290024,0.00024922,120]
[365540133,1749774519350,371.26138746,0.00024108,120]
[365540135,1749774520214,2593.89071358,0.00024922,120]
[365540136,1749774520592,1026.41137846,0.00024922,60]
[365540137,1749774520738,2534.33198962,0.00024922,120]
[365540138,1749774520804,1792.74507995,0.00024,120]
[365540141,1749774521487,1081.63428029,0.00024922,120]
[365540143,1749774521898,1004.70253241,0.00024922,120]
[365540144,1749774522133,1429.16294498,0.00024922,120]
[365540145,1749774522259,463.07542205,0.00024922,120]
[365540146,1749774522324,674.31811729,0.00024922,120]
[365540147,1749774522431,2824.86707971,0.00024922,120]
[365540148,1749774522828,1558.93650933,0.00024922,120]
[365540150,1749774523188,302.79770673,0.00024922,120]
[365540151,1749774523445,425.37447707,0.00024922,120]
[365540152,1749774523494,569.41076077,0.00024922,120]
[365540153,1749774523559,1423.55961656,0.00024922,120]
[365540154,1749774523655,215.30821136,0.00024922,120]
[365540157,1749774524292,1973.79576441,0.00024922,120]
[365540158,1749774524456,2079.1015576,0.0002,120]
[365540160,1749774524740,316.09082315,0.00024922,120]
[365540161,1749774525042,203.18929317,0.00024922,120]
[365540162,1749774525538,376.46209594,0.00024,120]
[365540163,1749774526236,647.49058508,0.00024922,120]
[365540164,1749774526309,1280.17980509,0.00024922,120]
[365540165,1749774526406,218.05162258,0.0001536,120]
[365540167,1749774527152,532.67376221,0.00024922,120]
[365540169,1749774527229,192.62432175,0.00024922,120]
[365540174,1749774528268,218.77608273,0.00024922,120]
[365540177,1749774528675,206.87129354,0.00024922,120]
[365540180,1749774529106,2973.13034066,0.00024922,120]
[365540181,1749774529156,2550.88044167,0.00024922,120]
[365540182,1749774529205,228.50501096,0.00024,120]
[365540183,1749774529242,2533.98816794,0.00024922,120]
[365540184,1749774529279,500.2551584,0.0002465,120]
[365540190,1749774571623,200.0,0.00023851,120]
[365540288,1749774636931,-381.295816,0.00020187,2]
[365540290,1749774636941,-500.0,0.00020593,2]
[365540292,1749774636950,-179.89556,0.00020782,2]
[365540294,1749774636959,-160.0,0.00021422,2]
[365540296,1749774636969,-2244.13,0.00021484,2]
[365540298,1749774636978,-300.0,0.0002174,2]
[365540300,1749774636987,-1043.0,0.0002174,2]
[365540302,1749774636996,-300.0,0.00021741,2]
[365540304,1749774637005,-300.0,0.00021741,2]
[365540306,1749774637015,-300.0,0.00021741,2]
[365540308,1749774637024,-172.31051228,0.00021741,2]
[365540315,1749774637083,-127.68948772,0.00021741,2]
[365540317,1749774637093,-604.28351266,0.00021741,2]
[365540319,1749774637102,-207.729,0.00021742,2]
[365540321,1749774637112,-407.5091914,0.00021742,4]
[365540322,1749774637121,-311.44314337,0.00021742,4]
[365540324,1749774637130,-460.0,0.00021742,4]
[365540326,1749774637140,-460.0,0.00021742,4]
[365540328,1749774637149,-460.0,0.00021742,4]
[365540330,1749774637159,-460.0,0.00021742,4]
[365540332,1749774637168,-460.0,0.00021742,4]
[365540334,1749774637180,-460.0,0.00021742,4]
[365540335,1749774637190,-371.78454838,0.00021742,4]
[365540336,1749774637200,-460.0,0.00021742,4]
[365540337,1749774637210,-460.0,0.00021742,4]
[365540338,1749774637219,-324.29,0.00021742,4]
[365540339,1749774637228,-460.0,0.00021742,4]
[365540340,1749774637238,-460.0,0.00021742,4]
[365540341,1749774637247,-460.0,0.00021742,4]
[365540342,1749774637257,-2645.6070611,0.00021743,2]
[365540343,1749774637266,-16836.5617377,0.00021743,2]
[365540344,1749774637275,-381.84259274,0.0002177,2]
[365540345,1749774637285,-1769.58501979,0.0002187,2]
[365540346,1749774637294,-202.20823418,0.00021899,2]
[365540347,1749774637304,-202.20823418,0.000219,2]
[365540349,1749774637314,-153.4535389,0.000219,2]
[365540351,1749774637323,-202.20823418,0.000219,2]
[365540352,1749774637332,-460.0,0.00021951,4]
[365540353,1749774637343,-463.5205487,0.00021951,4]
[365540354,1749774637354,-460.0,0.00021951,2]
[365540355,1749774637364,-460.0,0.00021951,4]
[365540356,1749774637374,-460.0,0.00021952,4]
[365540357,1749774637385,-402.41663212,0.00021952,2]
[365540358,1749774637394,-178.96875614,0.00021952,2]
[365540359,1749774637403,-460.0,0.00021952,4]
[365540360,1749774637413,-462.021599,0.00021973,2]
[365540361,1749774637422,-500.28861401,0.00021973,2]
[365540362,1749774637436,-500.0,0.00021973,2]
[365540363,1749774637446,-500.0,0.00021973,2]
[365540364,1749774637455,-528.45431058,0.00021973,2]
[365540365,1749774637465,-3038.3,0.00021989,10]
[365540366,1749774637474,-2531.91,0.00021989,10]
[365540367,1749774637484,-2109.93,0.0002199,10]
[365540368,1749774637493,-513.5903136,0.00021994,2]
[365540369,1749774637503,-500.0,0.00021994,2]
[365540370,1749774637513,-202.5,0.00021994,2]
[365540371,1749774637523,-500.0,0.00021994,2]
[365540372,1749774637533,-418.0,0.00021994,2]
[365540373,1749774637543,-500.0,0.00021994,2]
[365540374,1749774637552,-500.0,0.00021994,2]
[365540375,1749774637561,-156.12092099,0.00021994,2]
[365540376,1749774637571,-500.0,0.00021994,2]
[365540377,1749774637580,-500.0,0.00021994,2]
[365540378,1749774637590,-500.0,0.00021994,2]
[365540380,1749774637599,-421.27678343,0.00021994,2]
[365540381,1749774637609,-500.0,0.00021994,2]
[365540382,1749774637620,-374.49646234,0.00021994,2]
[365540383,1749774637629,-526.05594008,0.00021994,2]
[365540384,1749774637639,-500.0,0.00021994,2]
[365540385,1749774637648,-500.0,0.00021994,2]
[365540386,1749774637657,-500.0,0.00021994,2]
[365540387,1749774637667,-2661.59798192,0.00021995,2]
[365540388,1749774637680,-919.124304,0.00021995,2]
[365540389,1749774637691,-44429.41233837,0.00021995,2]
[365540390,1749774637701,-111195.58766159,0.00022,2]
[365540392,1749774637713,-35976.19360888,0.00022,2]
[365540393,1749774637725,-520.5,0.00022,2]
[365540437,1749774638326,-460.0,0.00021742,4]
[365540440,1749774638336,-4758.492,0.00022,2]
[365540451,1749774638442,-1469.48242955,0.00022,2]
[365540460,1749774638564,-14762.39664736,0.00022,2]
[365540461,1749774638575,-4999.3253604,0.00022,2]
[365540462,1749774638587,-1356.53628742,0.00022,2]
[365540463,1749774638628,500.0,0.00024922,120]
[365540507,1749774640336,-17177.90228636,0.00022,2]
[365540509,1749774640351,-2089.49276499,0.00022,2]
[365540514,1749774640395,-4025.43651686,0.00022,2]
[365540725,1749774643303,-64.4427458,0.00022,2]
[365540727,1749774643313,-182.0,0.00022,2]
[365540729,1749774643323,-175.72,0.00022016,4]
[365540730,1749774643333,-460.0,0.00022016,4]
[365540731,1749774643343,-460.0,0.00022016,4]
[365540732,1749774643356,-460.0,0.00022016,4]
[365540734,1749774643365,-507.66,0.00022016,4]
[365540736,1749774643374,-460.0,0.00022016,4]
[365540738,1749774643383,-568.96,0.00022016,4]
[365540739,1749774643393,-460.0,0.00022016,4]
[365540740,1749774643403,-234.78938536,0.00022142,2]
[365540742,1749774643412,-500.0,0.00022175,2]
[365540743,1749774643421,-381.84259269,0.00022206,2]
[365540744,1749774643433,-460.0,0.00022225,2]
[365540745,1749774643442,-237.71723805,0.00022226,4]
[365540746,1749774643452,-460.0,0.0002229,4]
[365540747,1749774643461,-460.0,0.0002229,4]
[365540748,1749774643471,-460.0,0.0002229,4]
[365540749,1749774643480,-460.0,0.0002229,4]
[365540750,1749774643490,-844.79171733,0.00022374,2]
[365540751,1749774643499,-160.0,0.00022374,2]
[365540752,1749774643508,-200.0,0.0002243,7]
[365540753,1749774643517,-201.38427359,0.0002243,7]
[365540754,1749774643528,-500.0,0.00022466,2]
[365540755,1749774643537,-500.0,0.00022466,2]
[365540756,1749774643546,-508.57450474,0.00022466,2]
[365540757,1749774643556,-460.0,0.00022499,2]
[365540758,1749774643565,-229.80585427,0.00022521,2]
[365540759,1749774643575,-153.45353888,0.00022525,2]
[365540760,1749774643584,-460.0,0.00022564,4]
[365540761,1749774643593,-460.0,0.00022564,4]
[365540762,1749774643603,-460.0,0.00022564,4]
[365540763,1749774643612,-460.0,0.00022564,4]
[365540764,1749774643621,-381.84259269,0.00022642,2]
[365540765,1749774643632,-207.4,0.00022742,2]
[365540766,1749774643641,-460.0,0.00022773,2]
[365540767,1749774643651,-500.0,0.00022785,2]
[365540768,1749774643661,-500.0,0.00022814,2]
[365540770,1749774643671,-342.41525525,0.00022822,2]
[365540771,1749774643680,-460.0,0.00022838,4]
[365540772,1749774643692,-460.0,0.00022838,4]
[365540774,1749774643701,-460.0,0.00022838,4]
[365540775,1749774643711,-460.0,0.00022838,4]
[365540777,1749774643721,-981.22143961,0.000229,8]
[365540779,1749774643731,-981.22143957,0.00022969,8]
[365540781,1749774643740,-182.0,0.00023014,7]
[365540783,1749774643750,-981.22143957,0.00023038,8]
[365540785,1749774643760,-420.5359826,0.00023047,2]
[365540806,1749774643969,-39.4640174,0.00023047,2]
[365540808,1749774643979,-381.84259269,0.00023078,2]
[365540810,1749774643990,-460.0,0.00023106,4]
[365540812,1749774644000,-270.01767968,0.00023106,4]
[365540814,1749774644010,-460.0,0.00023106,4]
[365540816,1749774644019,-981.22143957,0.00023107,8]
[365540818,1749774644029,-460.0,0.00023112,4]
[365540821,1749774644039,-460.0,0.00023112,4]
[365540822,1749774644049,-460.0,0.00023112,4]
[365540825,1749774644059,-460.0,0.00023112,4]
[365540827,1749774644069,-153.45353888,0.0002315,2]
[365540829,1749774644079,-981.22143957,0.00023176,8]
[365540831,1749774644089,-981.22143957,0.00023245,8]
[365540833,1749774644098,-20229.533656,0.00023313,7]
[365540834,1749774644107,-981.22143957,0.00023314,9]
[365540836,1749774644117,-460.0,0.00023321,2]
[365540838,1749774644128,-981.22143957,0.00023383,9]
[365540841,1749774644138,-460.0,0.00023386,4]
[365540843,1749774644147,-439.31684378,0.00023386,4]
[365540844,1749774644157,-460.0,0.00023386,4]
[365540846,1749774644167,-460.0,0.00023386,4]
[365540848,1749774644176,-164.5293829,0.00023436,2]
[365540850,1749774644188,-933.01429483,0.00023436,2]
[365540852,1749774644198,-933.01429483,0.00023436,2]
[365540854,1749774644208,-933.01429483,0.00023436,2]
[365540857,1749774644219,-933.01429483,0.00023436,2]
[365540858,1749774644228,-933.01429483,0.00023436,2]
[365540860,1749774644237,-933.01429483,0.00023436,2]
[365540862,1749774644247,-285.66805488,0.00023436,2]
[365540865,1749774644264,-2487.2395952,0.000219,2]
[365540867,1749774644274,-647.34623995,0.00023436,2]
[365540869,1749774644283,-933.01429483,0.00023436,2]
[365540870,1749774644292,-933.01429483,0.00023436,2]
[365540872,1749774644302,-933.01429483,0.00023436,2]
[365540874,1749774644311,-933.01429483,0.00023436,2]
[365540876,1749774644321,-933.01429483,0.00023436,2]
[365540878,1749774644331,-933.01429483,0.00023436,2]
[365540880,1749774644341,-933.01429483,0.00023436,2]
[365540882,1749774644350,-933.01429483,0.00023436,2]
[365540884,1749774644362,-933.01429483,0.00023436,2]
[365540888,1749774644372,-933.01429483,0.00023436,2]
[365540891,1749774644382,-933.01429483,0.00023436,2]
[365540895,1749774644392,-933.01429483,0.00023436,2]
[365540899,1749774644401,-933.01429483,0.00023436,2]
[365540901,1749774644411,-933.01429483,0.00023436,2]
[365540904,1749774644420,-933.01429483,0.00023436,2]
[365540906,1749774644430,-933.01429483,0.00023436,2]
[365540908,1749774644444,-933.01429483,0.00023436,2]
[365540910,1749774644453,-275.06160352,0.00023437,2]
[365541470,1749774649890,500.0,0.00024922,120]
[365542530,1749774666865,343.166234,0.00013699,2]
[365542534,1749774691316,200.0,0.00024011,120]
[365542535,1749774693036,239.76,0.00023303,120]
[365542536,1749774693287,500.0,0.00024922,120]
[365542537,1749774700630,500.0,0.00024922,120]
[365542538,1749774711501,500.0,0.00024922,120]
[365542539,1749774720076,500.0,0.00024922,120]
[365542541,1749774747654,500.0,0.00024893,120]
[365542542,1749774762095,500.0,0.00024893,120]
[365542544,1749774799444,500.0,0.00024893,120]
[365542545,1749774805981,500.0,0.00024893,120]
[365542547,1749774841362,500.0,0.00024893,120]
[365542550,1749774932218,200.0,0.00024379,120]
[365542609,1749775062450,920.0,0.00024893,60]
[365542645,1749775110405,2000.0,0.00020544,120]
[365542646,1749775111054,200.0,0.00024084,120]
[365542653,1749775171200,200.0,0.00023801,120]
[365542655,1749775181475,1561.69342878,0.00024893,60]
[365542787,1749775232288,200.0,0.00024579,120]
[365542791,1749775291812,150.5,0.00023794,120]
[365542792,1749775292256,150.5,0.00023784,120]
[365542793,1749775292709,150.5,0.00023774,120]
[365543665,1749775351385,200.0,0.00023869,120]
[365544228,1749775411381,200.0,0.00024235,120]
[365544275,1749775465048,1561.69342878,0.00024926,60]
[365544282,1749775614787,2341.24,0.00024926,60]
[365544285,1749775651223,200.0,0.00023835,120]
[365544286,1749775653666,150.5,0.0002379,120]
[365544287,1749775654103,150.5,0.0002378,120]
[365544288,1749775654579,150.5,0.0002377,120]
[365544299,1749775711390,200.0,0.00023768,120]
[365544300,1749775714184,2908.24903396,0.00024926,120]
[365544301,1749775717894,335.307222,0.00013699,2]
[365544312,1749775831947,200.0,0.00023796,120]
[365544347,1749775832484,-335.307222,0.00020187,2]
[365544348,1749775832494,-4117.62309441,0.00020254,2]
[365544357,1749775832642,-3304.83512929,0.00020254,2]
[365544358,1749775832652,-179.89556,0.00020544,2]
[365544360,1749775832662,-385.0,0.00020592,2]
[365544362,1749775832672,-500.0,0.00020593,2]
[365544364,1749775832682,-738.93299914,0.0002092,2]
[365544366,1749775832692,-161.76880127,0.00021,2]
[365544368,1749775832703,-300.0,0.00021408,2]
[365544370,1749775832713,-300.0,0.0002141,2]
[365544371,1749775832724,-500.0,0.00021411,2]
[365544373,1749775832734,-2277.56,0.0002153,2]
[365544375,1749775832746,-33499.04443397,0.0002153,2]
[365544377,1749775832756,-190.92129638,0.00021641,2]
[365544379,1749775832766,-805.03692695,0.00021676,2]
[365544381,1749775832776,-628.43,0.00021688,4]
[365544382,1749775832787,-791.19,0.00021688,4]
[365544384,1749775832802,-801.09,0.00021688,4]
[365544386,1749775832812,-460.0,0.00021688,4]
[365544388,1749775832827,-460.0,0.00021688,4]
[365544389,1749775832837,-460.0,0.00021688,4]
[365544390,1749775832847,-460.0,0.00021688,4]
[365544391,1749775832857,-460.0,0.00021688,4]
[365544393,1749775832867,-460.0,0.00021688,4]
[365544395,1749775832876,-460.0,0.00021688,4]
[365544397,1749775832886,-460.0,0.00021688,4]
[365544398,1749775832896,-460.0,0.00021688,4]
[365544400,1749775832905,-460.0,0.00021688,4]
[365544402,1749775832915,-661.6,0.00021688,4]
[365544404,1749775832924,-460.0,0.00021688,4]
[365544406,1749775832934,-460.0,0.00021688,4]
[365544407,1749775832944,-460.0,0.00021688,4]
[365544409,1749775832954,-500.0,0.00021689,2]
[365544411,1749775832964,-203.477,0.00021689,2]
[365544412,1749775832973,-460.0,0.0002174,2]
[365544414,1749775832983,-325.46667176,0.00021741,4]
[365544416,1749775832993,-440.0,0.00021741,4]
[365544418,1749775833003,-460.0,0.00021741,4]
[365544420,1749775833014,-460.0,0.00021741,4]
[365544421,1749775833024,-460.0,0.00021741,4]
[365544423,1749775833035,-460.0,0.00021741,4]
[365544425,1749775833046,-460.0,0.00021741,4]
[365544427,1749775833056,-460.0,0.00021741,4]
[365544428,1749775833070,-460.0,0.00021741,4]
[365544430,1749775833080,-460.0,0.00021741,4]
[365544432,1749775833090,-460.0,0.00021741,4]
[365544433,1749775833100,-460.0,0.00021741,4]
[365544435,1749775833110,-320.0,0.00021741,4]
[365544437,1749775833120,-1233.9,0.00021741,4]
[365544439,1749775833131,-460.0,0.00021741,4]
[365544440,1749775833141,-460.0,0.00021741,4]
[365544442,1749775833151,-460.0,0.00021741,4]
[365544444,1749775833162,-460.0,0.00021741,4]
[365544446,1749775833172,-1097.93,0.00021741,4]
[365544448,1749775833182,-460.0,0.00021741,4]
[365544449,1749775833192,-460.0,0.00021742,4]
[365544451,1749775833202,-460.0,0.00021742,4]
[365544453,1749775833212,-460.0,0.00021742,4]
[365544461,1749775833222,-460.0,0.00021742,2]
[365544462,1749775833356,-460.0,0.00021742,4]
[365544463,1749775833366,-400.0,0.00021742,4]
[365544464,1749775833376,-3031.74015706,0.00021812,2]
[365544465,1749775833385,-2534.32645579,0.000219,6]
[365544466,1749775833395,-628.43,0.00021962,4]
[365544467,1749775833405,-791.19,0.00021962,4]
[365544468,1749775833414,-801.09,0.00021962,4]
[365544469,1749775833424,-460.0,0.00021962,4]
[365544470,1749775833434,-460.0,0.00021962,4]
[365544471,1749775833444,-460.0,0.00021962,4]
[365544472,1749775833456,-460.0,0.00021962,4]
[365544473,1749775833466,-460.0,0.00021962,4]
[365544474,1749775833477,-460.0,0.00021962,4]
[365544475,1749775833487,-460.0,0.00021962,4]
[365544476,1749775833498,-460.0,0.00021962,4]
[365544477,1749775833508,-460.0,0.00021962,4]
[365544478,1749775833519,-460.0,0.00021962,4]
[365544479,1749775833529,-661.6,0.00021962,4]
[365544480,1749775833539,-460.0,0.00021962,4]
[365544481,1749775833549,-460.0,0.00021962,4]
[365544482,1749775833559,-3649.37,0.00021994,10]
[365544483,1749775833572,-3041.14,0.00021994,10]
[365544484,1749775833582,-1913.74,0.00021995,10]
[365544485,1749775833592,-160.0,0.00021999,2]
[365544486,1749775833602,-161.0,0.00022,3]
[365544487,1749775833611,-161.0,0.00022,4]
[365544488,1749775833620,-2534.32645563,0.00022003,6]
[365544489,1749775833630,-6921.98924,0.00022004,2]
[365544490,1749775833640,-460.0,0.00022014,2]
[365544491,1749775833650,-460.0,0.00022015,4]
[365544492,1749775833661,-460.0,0.00022015,4]
[365544493,1749775833671,-460.0,0.00022015,4]
[365544494,1749775833682,-460.0,0.00022015,4]
[365544495,1749775833692,-460.0,0.00022015,4]
[365544496,1749775833705,-460.0,0.00022015,4]
[365544497,1749775833716,-460.0,0.00022015,4]
[365544498,1749775833725,-460.0,0.00022015,4]
[365544499,1749775833736,-460.0,0.00022015,4]
[365544500,1749775833747,-460.0,0.00022015,4]
[365544501,1749775833758,-1233.9,0.00022015,4]
[365544502,1749775833769,-460.0,0.00022015,4]
[365544503,1749775833782,-460.0,0.00022015,4]
[365544504,1749775833794,-460.0,0.00022015,4]
[365544505,1749775833805,-460.0,0.00022015,4]
[365544506,1749775833816,-1097.93,0.00022015,4]
[365544507,1749775833835,-460.0,0.00022015,4]
[365544508,1749775833846,-460.0,0.00022016,4]
[365544509,1749775833857,-460.0,0.00022016,4]
[365544510,1749775833868,-460.0,0.00022016,4]
[365544511,1749775833879,-460.0,0.00022016,2]
[365544512,1749775833891,-460.0,0.00022016,4]
[365544513,1749775833901,-178.0,0.0002203,2]
[365544514,1749775833912,-1193.83555929,0.00022074,2]
[365544515,1749775833922,-190.92129634,0.00022096,2]
[365544516,1749775833933,-178.0,0.00022101,2]
[365544517,1749775833943,-2534.32645563,0.00022107,6]
[365544518,1749775833954,-1882.92681027,0.00022189,2]
[365544519,1749775833963,-2534.32645563,0.0002221,6]
[365544520,1749775833974,-628.43,0.00022236,4]
[365544521,1749775833984,-791.19,0.00022236,4]
[365544522,1749775833994,-801.09,0.00022236,4]
[365544523,1749775834004,-460.0,0.00022236,4]
[365544524,1749775834015,-460.0,0.00022236,4]
[365544525,1749775834025,-460.0,0.00022236,4]
[365544526,1749775834035,-460.0,0.00022236,4]
[365544527,1749775834046,-460.0,0.00022236,4]
[365544528,1749775834057,-460.0,0.00022236,4]
[365544529,1749775834070,-460.0,0.00022236,4]
[365544530,1749775834080,-460.0,0.00022236,4]
[365544531,1749775834090,-460.0,0.00022236,4]
[365544532,1749775834101,-460.0,0.00022236,4]
[365544533,1749775834110,-661.6,0.00022236,4]
[365544534,1749775834120,-460.0,0.00022236,4]
[365544535,1749775834130,-460.0,0.00022236,4]
[365544536,1749775834140,-178.0,0.00022237,2]
[365544537,1749775834150,-1372.76928467,0.00022242,2]
[365544538,1749775834160,-500.0,0.00022249,2]
[365544539,1749775834170,-500.0,0.0002227,2]
[365544540,1749775834179,-500.0,0.00022286,2]
[365544541,1749775834189,-500.0,0.00022286,2]
[365544542,1749775834200,-500.0,0.00022286,2]
[365544543,1749775834210,-460.0,0.00022288,2]
[365544544,1749775834220,-460.0,0.00022289,4]
[365544545,1749775834230,-460.0,0.00022289,4]
[365544546,1749775834240,-460.0,0.00022289,4]
[365544547,1749775834250,-460.0,0.00022289,4]
[365544548,1749775834261,-460.0,0.00022289,4]
[365544549,1749775834271,-460.0,0.00022289,4]
[365544550,1749775834281,-460.0,0.00022289,4]
[365544551,1749775834292,-460.0,0.00022289,4]
[365544552,1749775834303,-460.0,0.00022289,4]
[365544553,1749775834313,-460.0,0.00022289,4]
[365544554,1749775834326,-1233.9,0.00022289,4]
[365544555,1749775834336,-460.0,0.00022289,4]
[365544556,1749775834346,-460.0,0.00022289,4]
[365544557,1749775834357,-460.0,0.00022289,4]
[365544558,1749775834367,-460.0,0.00022289,4]
[365544559,1749775834377,-1097.93,0.00022289,4]
[365544560,1749775834387,-460.0,0.00022289,4]
[365544561,1749775834397,-460.0,0.0002229,4]
[365544562,1749775834408,-304.52,0.0002229,4]
[365544563,1749775834418,-460.0,0.0002229,4]
[365544564,1749775834429,-460.0,0.0002229,2]
[365544565,1749775834439,-500.0,0.000223,2]
[365544566,1749775834449,-500.0,0.000223,2]
[365544567,1749775834459,-346.9454993,0.00022313,2]
[365544568,1749775834469,-2534.32645563,0.00022314,7]
[365544569,1749775834479,-500.0,0.00022342,2]